Cogmind - Beta 9.3 @@@ ROGUE MODE // 2019.12.18 @ 10:40:59 // Winter2019/RPGLIKE Player: Pimski Result: Destroyed by 8R-AWN with 8R-AWN's Boregun Performance ------------- Evolutions (0) 0 Regions Visited (3) 600 Robots Destroyed (16) 80 Value Destroyed (63) 63 Prototype IDs (24) 480 Alien Tech Used (0) 0 Bonus (-540) -540 TOTAL SCORE: 683 Bonus ------- Follower Combat Kills 74 Aligned with FarCom 300 Friendly Fire -914 Cogmind --------- Core Integrity 0/600 Matter 276/300 Energy 99/100 System Corruption 7% Temperature Cool (0) Movement Core (50) Location -10/Exiles Parts ------- > --- POWER (1) -------- (None) > --- PROPULSION (1) --- (None) > --- UTILITY (1) ------ (None) > --- WEAPON (2) ------- Light Assault Rifle > --- INVENTORY (2) ---- Latent Energy Streamer Peak State ------------ > --- POWER ------------ Makeshift Power Source > --- PROPULSION ------- Armored Wheel > --- UTILITY ---------- Large Matter Pod > --- WEAPON ----------- Latent Energy Streamer Longsword +1 > --- INVENTORY -------- Light Assault Rifle [Rating: 25] Favorites ----------- Power Makeshift Power Source Engine Makeshift Power Source Power Core Light Nuclear Core Propulsion Armored Wheel Treads Light Treads Leg Aluminum Leg Wheel Armored Wheel Utility Large Matter Pod Storage Large Matter Pod Weapon Light Assault Rifle Energy Gun EM Pulse Gun Energy Cannon Latent Energy Streamer Ballistic Gun Light Assault Rifle Slashing Weapon Longsword +1 Build | -11 -10 -10 -10 ------- Run | Scr Mat Min Exi Slots Evolved 1 | . . 1 . Power . | . . . . Propulsion . | . . . . Utility . | . . . . Weapon 1 | . . 1 . Parts Attached 12 | 1 3 4 4 Power 2 | . . 2 . Engine 1 | . . 1 . Core 1 | . . 1 . Reactor . | . . . . Propulsion 3 | 1 2 . . Treads 1 | 1 . . . Leg 1 | . 1 . . Wheel 1 | . 1 . . Hover . | . . . . Flight . | . . . . Utility 1 | . 1 . . Device . | . . . . Storage 1 | . 1 . . Processor . | . . . . Hackware . | . . . . Protection . | . . . . Artifact . | . . . . Weapon 6 | . . 2 4 Energy Gun . | . . . . Energy Cannon 2 | . . . 2 Ballistic Gun 3 | . . 2 1 Ballistic Cannon . | . . . . Launcher . | . . . . Special Weapon . | . . . . Impact Weapon . | . . . . Slashing Weapon 1 | . . . 1 Piercing Weapon . | . . . . Special Melee Weapon . | . . . . Unidentified Prototypes . | . . . . Parts Lost . | . . . . Power . | . . . . Propulsion . | . . . . Utility . | . . . . Weapon . | . . . . Highest Loss Streak . | . . . . Average Slot Usage (%) 96 | . 98 100 89 Engine 17 | . 25 15 18 Core 2 | . . 5 . Wheel 19 | . 16 20 18 Storage 19 | . 23 20 18 Energy Gun 8 | . 25 10 . Energy Cannon 4 | . . . 12 Ballistic Gun 21 | . . 27 20 Slashing Weapon 1 | . . . 3 Naked Turns 17 | . . . 17 Heaviest Build 20 | 5 8 11 20 Greatest Support 20 | 20 20 12 12 Greatest Overweight (x) 1 | . . . 1 Average Overweight (x) . | . . . . Largest Inventory Capacity 2 | . 1 2 2 Average Capacity 1 | . . 1 2 Most Carried 2 | . 1 2 2 Average Carried 1 | . . 1 1 Final Capacity 2 | . 1 2 2 Final Carried 2 | . 1 2 1 Class Distribution -------------------- 100% | Mutant Dominant Class ---------------- Mutant | -10/Materials Mutant | -10/Mines Mutant | -10/Exiles Resources | -11 -10 -10 -10 ----------- Run | Scr Mat Min Exi Matter Collected 464 | 200 190 49 25 Remotely . | . . . . Salvage Created 419 | 54 218 40 107 Parts 16 | 2 5 7 2 Haulers Intercepted . | . . . . Recyclers Shooed 3 | 1 1 1 . Parts Field Recycled . | . . . . Retrieved Matter . | . . . . Parts Self-Destructed . | . . . . Prevented . | . . . . Kills | -11 -10 -10 -10 ------- Run | Scr Mat Min Exi Combat Hostiles Destroyed 7 | . 1 3 3 Melee 2 | . . . 2 Guns 4 | . 1 3 . AOE 1 | . . . 1 Classes Destroyed 5 | 1 2 . 2 Builder 1 | . 1 . . Recycler 3 | 1 2 . . Swarmer 4 | . 1 3 . Zionite 1 | . . . 1 Assembled 7 | . . . 7 Best Kill Streak 3 | 1 2 1 3 Combat Bots Only 3 | . 1 1 3 Max Kills in Single Turn 5 | 1 1 1 5 Gunslinging . | . . . . Exploded 1 | . . . 1 Melee 1 | . . . 1 Uniques/NPCs Destroyed . | . . . . Combat | -11 -10 -10 -10 -------- Run | Scr Mat Min Exi Damage Taken 991 | . 45 121 825 Core 860 | . 37 99 724 Absorbed by Shields . | . . . . Redirected to Core 455 | . 28 65 362 Core Remaining (%) 100 | 100 . . . Volleys Fired 32 | 2 10 13 7 Largest 2 | 1 1 2 2 Hottest 80 | 40 40 60 80 Shots Fired 42 | 2 10 22 8 Gun 40 | 2 10 22 6 Cannon 2 | . . . 2 Launcher . | . . . . Special . | . . . . Kinetic 15 | . . 9 6 Thermal . | . . . . Explosive . | . . . . Electromagnetic 27 | 2 10 13 2 Robot Hit Streak 8 | 1 6 8 5 Robot Miss Streak 2 | 1 2 2 2 Penetration Max . | . . . . Secondary Targets . | . . . . Shots Hit Robots 44 | 1 7 13 23 Core Hits 24 | 1 5 7 11 Critical Hits 1 | . . . 1 Critical Kills . | . . . . Critical Parts Destroyed 1 | . . . 1 Melee Attacks 20 | . . . 20 Impact . | . . . . Slashing 20 | . . . 20 Piercing . | . . . . Sneak Attacks . | . . . . Combat Hostiles . | . . . . Follow-up Attacks . | . . . . Damage Inflicted 1691 | 15 109 126 1441 Guns 281 | 15 109 126 31 Cannons . | . . . . Explosions 573 | . . . 573 Melee 837 | . . . 837 Ramming . | . . . . Kinetic 61 | . . 30 31 Thermal . | . . . . Explosive . | . . . . Electromagnetic 793 | 15 109 96 573 Impact . | . . . . Slashing 837 | . . . 837 Piercing . | . . . . Highest Corruption 7 | . 1 1 7 Average Corruption 1 | . 1 1 2 Corruption Purged . | . . . . Effects 10 | . 1 1 8 Message Errors 4 | . 1 1 2 Matter Fused 1 | . . . 1 Heat Flow Errors 1 | . . . 1 Parts Rejected 1 | . . . 1 Data Loss (minor) 1 | . . . 1 Targeting Errors 2 | . . . 2 Overload Shots . | . . . . Overflow Damage 10 | . . . 10 Projectiles . | . . . . Explosions . | . . . . Melee 10 | . . . 10 Knockbacks . | . . . . Impact . | . . . . Kinetic . | . . . . Secondary . | . . . . Self-Inflicted Damage . | . . . . Shots . | . . . . Rammed . | . . . . Targets Rammed . | . . . . Kicked . | . . . . Crushed . | . . . . Highest Temperature 97 | . . 54 97 Average Temperature 24 | . . 21 27 Received Heat Transfer 75 | . . 15 60 Siege Activations . | . . . . Robots Corrupted . | . . . . Combat Hostiles . | . . . . Parts Fried 1 | . 1 . . Impact Corruptions . | . . . . Robots Melted . | . . . . Combat Hostiles . | . . . . Parts Melted . | . . . . Heat Transferred . | . . . . Parts Sabotaged . | . . . . Parts Stolen . | . . . . Parts Stripped . | . . . . Power Chain Reactions . | . . . . Missiles Intercepted . | . . . . Latent Energy Used 373 | . . . 373 LE Corruption 6 | . . . 6 Alert | -11 -10 -10 -10 ------- Run | Scr Mat Min Exi Peak Influence 190 | 5 56 190 . Average Influence 59 | 2 21 69 . Maximum Alert Level . | . . . . Low Security (%) 100 | 100 100 100 . Level 1 . | . . . . Level 2 . | . . . . Level 3 . | . . . . Level 4 . | . . . . Level 5 . | . . . . High Security . | . . . . Max Security . | . . . . Squads Dispatched . | . . . . Investigation . | . . . . Extermination . | . . . . Reinforcement . | . . . . Assault . | . . . . Garrison . | . . . . Intercept . | . . . . Construction Impeded . | . . . . Haulers Reinforced . | . . . . Stealth | -11 -10 -10 -10 --------- Run | Scr Mat Min Exi Distress Signals . | . . . . Communications Jammed . | . . . . Distress Signals . | . . . . Times Spotted 17 | . 3 10 4 Peak Tracking Total 5 | . 3 3 5 Tactical Retreats 3 | . 1 2 . Traps | -11 -10 -10 -10 ------- Run | Scr Mat Min Exi Traps Triggered 1 | . 1 . . Indirectly . | . . . . Trap Hack Attempts . | . . . . Triggered . | . . . . Disarmed . | . . . . Reprogrammed . | . . . . Reused . | . . . . Traps Extracted . | . . . . Installed . | . . . . Triggered . | . . . . Machines | -11 -10 -10 -10 ---------- Run | Scr Mat Min Exi Machines Disabled 4 | . . . 4 Max in Single Turn 2 | . . . 2 Machines Sabotaged . | . . . . Garrisons Compromised . | . . . . Overloaded Fab Kills . | . . . . Fab Network Shutdowns . | . . . . Hacking | -11 -10 -10 -10 --------- Run | Scr Mat Min Exi Machines Accessed 3 | . 2 . 1 Terminals 2 | . 2 . . Fabricators . | . . . . Repair Stations . | . . . . Recycling Units . | . . . . Scanalyzers . | . . . . Garrison Access . | . . . . Total Hacks 10 | . 9 . 1 Successful 5 | . 4 . 1 Failed 5 | . 5 . . Catastrophic 3 | . 3 . . Database Lockouts . | . . . . Manual 5 | . 4 . 1 Terminals 9 | . 9 . . Fabricators . | . . . . Repair Stations . | . . . . Recycling Units . | . . . . Scanalyzers . | . . . . Garrison Access . | . . . . Terminal Hacks 4 | . 3 . 1 Prototype ID Bank 1 | . 1 . . Branch Access Points 1 | . 1 . . Zone Layout 1 | . 1 . . EX-Prototype ID Bank 1 | . . . 1 Fabricator Hacks . | . . . . Repair Station Hacks . | . . . . Recycling Unit Hacks . | . . . . Scanalyzer . | . . . . Garrison Access Hacks . | . . . . Unauthorized Hacks 2 | . 2 . . Terminals 1 | . 1 . . Botnet 1 | . 1 . . Fabricators . | . . . . Repair Stations . | . . . . Recycling Units . | . . . . Scanalyzers . | . . . . Garrison Access . | . . . . Data Cores Recovered . | . . . . Used . | . . . . Hacking Detections 2 | . 2 . . Full Trace Events . | . . . . Feedback Events . | . . . . Feedback Blocked . | . . . . Robot Schematics Acquired . | . . . . Robots Built . | . . . . Matter . | . . . . Time . | . . . . Total Robot Build Rating . | . . . . Part Schematics Acquired . | . . . . Parts Built . | . . . . Matter . | . . . . Time . | . . . . Total Part Build Rating . | . . . . Parts Repaired . | . . . . Time . | . . . . Parts Recycled . | . . . . Recycled Matter . | . . . . Retrieved Matter . | . . . . Retrieved Components . | . . . . Parts Scanalyzed . | . . . . Part Schematics Acquired . | . . . . Parts Damaged . | . . . . Bothacking | -11 -10 -10 -10 ------------ Run | Scr Mat Min Exi Used RIF Installer . | . . . . Robots Hacked . | . . . . Non-combat . | . . . . Combat . | . . . . Robot Hacks Applied . | . . . . Relay Couplers Released . | . . . . Robots Rewired . | . . . . Allies Hacked . | . . . . Hacks Repelled . | . . . . Allies | -11 -10 -10 -10 -------- Run | Scr Mat Min Exi Total Allies 3 | . . 3 . Largest Group 3 | . . 3 1 Highest-Rated Group 81 | . . 81 31 Highest-Rated Ally 31 | . . 31 31 Total Orders . | . . . . Ally Attacks 8 | . . 8 . Total Damage 105 | . . 105 . Kills 4 | . . 4 . Allies Corrupted . | . . . . Allies Melted . | . . . . Intel | -11 -10 -10 -10 ------- Run | Scr Mat Min Exi Robot Analysis Total . | . . . . Derelict Logs Recovered 2 | . . 2 . Drone Launches . | . . . . Drone Recoveries . | . . . . Exploration | -11 -10 -10 -10 ------------- Run | Scr Mat Min Exi Turns Passed 1173 | 12 145 612 404 Spaces Moved 894 | 5 115 559 215 Core 26 | . . . 26 Treads 8 | 3 5 . . Legs 34 | 2 32 . . Wheels 826 | . 78 559 189 Hover . | . . . . Flight . | . . . . Fastest Speed 50 | 120 90 90 50 Average Speed 91 | 144 101 90 88 Slowest Speed 160 | 160 160 90 100 Overloaded Moves . | . . . . Propulsion Burnouts . | . . . . Robots Hopped . | . . . . Cave-ins Triggered . | . . . . Exploration Rate (%) 42 | 2 26 99 41 Regions Visited 3 Branch Regions 2 Pre-discovered Areas 1 | . . 1 . Known Exits Taken 1 | . 1 . . Unknown Exits Taken 2 | 1 . 1 . Scrap Searched 1 | . . 1 . Spaces Dug . | . . . . Terrain Destroyed 21 | . . . 21 Melee . | . . . . Projectile . | . . . . AOE 21 | . . . 21 Actions | -11 -10 -10 -10 --------- Run | Scr Mat Min Exi Total 1193 | 8 132 647 406 Wait 197 | . 2 52 143 Move 891 | 4 114 558 215 Hop . | . . . . Pick Up 5 | . 1 2 2 Fast Attach 8 | 1 3 3 1 Attach 2 | . . . 2 Detach 2 | . . . 2 Swap 2 | . . 1 1 Drop 13 | 1 2 3 7 Fire 32 | 2 10 13 7 Melee 20 | . . . 20 Ram . | . . . . Kick . | . . . . Crush . | . . . . Escape Stasis . | . . . . Rewire . | . . . . Trap . | . . . . Miscellaneous 21 | . . 15 6 Route ------- -11/Scrapyard -10/Materials -10/Mines (discovered 3 exits: [*Mat x2] / *Exi) -10/Exiles (discovered 2 exits: Min x2) History --------- Turn | Location | Event 1 | -11/Scrapyard | Discovered new exit (range 1) 13 | -11/Scrapyard | Entered Materials 51 | -10/Materials | Identified exit to Mines 158 | -10/Materials | Entered Mines 215 | -10/Mines | Upgraded with Weapon slot (x1) 271 | -10/Mines | Learned location of Storage (-9) 283 | -10/Mines | Discovered new exit (range 7) 318 | -10/Mines | Build established: Mutant 418 | -10/Mines | Escorted by a lone wolf Derelict 465 | -10/Mines | Reached level 2 563 | -10/Mines | Deemed a non-threat by the Exiles lab entrance 563 | -10/Mines | Discovered new exit (range 5) 650 | -10/Mines | Discovered new exit (range 8) 770 | -10/Mines | Entered Exiles 770 | -10/Exiles | Accompanied by 2 allies 771 | -10/Exiles | Identified exit to Mines 792 | -10/Exiles | Met 8R-AWN 800 | -10/Exiles | Led the pair of lost Derelicts to a safe place 808 | -10/Exiles | Met EX-HEX 833 | -10/Exiles | Met EX-BIN 843 | -10/Exiles | Aligned with FarCom system 843 | -10/Exiles | Given EX-Vault access code 864 | -10/Exiles | Opened EX-Vault 869 | -10/Exiles | Found Longsword +1 872 | -10/Exiles | Found Latent Energy Streamer 896 | -10/Exiles | Warned to stay clear of 0b10 Research branches 1057 | -10/Exiles | Attacked by the Exiles 1109 | -10/Exiles | Core integrity fell below 50% 1125 | -10/Exiles | Core integrity fell below 20% 1174 | -10/Exiles | Destroyed by 8R-AWN with 8R-AWN's Boregun Last Messages --------------- 01122_ HV Slug penetrates Wall. 01124_ Penetrated by HV Slug. 01129_ System corrupted: Longsword +1 rejected. 01129_ Penetrated by HV Slug. 01130_ Dropped Lrg. Matter Pod. 01131_ Dropped Mak. Power Source. 01131_ Dropped Arm. Wheel. 01132_ HV Slug penetrates Wall. 01132_ HV Slug penetrates Earth. 01132_ Penetrated by HV Slug. 01132_ HV Slug penetrates Wall. 01143_ Used Protomatter to restore core integrity (+30, depleted) 01147_ System corrupted: Heat flow error (+122). 01172_ Penetrated by HV Slug. 01172_ HV Slug penetrates Machine. 01172_ Penetrated by HV Slug. 01172_ HV Slug penetrates Wall. 01172_ 8R-AWN suffers critical hit. 01172_ Destroyed Prototype Ballistic Gun. 01174_ Penetrated by HV Slug. Map ----- +----------------------------------------------------+ | #" ###########????????????????????????????????? | | "" #??????????????????????????????????????????? | | " #??????????????????????????????????????????? | | " ##?????????????????????????????????????????? | | " ##???###########??????????????????????????? | | #####"""""""""##?????????????????????????? | | " """ """"##????????????????????????? | | "" " #????????????????????????? | | " """#????????????????????????? | | "#???????????#####????????? | | " "##?????????##" #????????? | | "###???????#" #????????? | | """" ""#???##### ##???????? | | ###""" "#?###""" ####????? | | ??#####""" ### " "###### | | ??????##""" #; ; #""""# | | ???????#"""" ;; !/* | | ???????#"" ## == * | | ???????"" " % ##"# | | ??????" # "% ""#### | | ????" ; ###"######??### | | ????? ;#""### ??????????? | | ???? %= ####### #???????????? | | ???? = ##????# #????????????? | | ????? "" g""#????# #?????????????? | | ???????"" " " ; % @"##???? #??????????????? | | ????????##""" " ;; """ ##???? ????????????????? | | ?????????###"""";#;;;######???? ?????????????????? | | ???????????####??####????????????????????????????? | | ?????????????????????????????????????????????????? | | ?????????????????????????????????????????????????? | | ?????????????????????????????????????????????????? | | ?????????????????????????????????????????????????? | | ?????????????????????????????????????????????????? | | ?????????????????????????????????????????????????? | | ?????????????????????????????????????????????????? | | ?????????????????????????????????????????????????? | | ?????????????????????????????????????????????????? | | ?????????????????????????????????????????????????? | | ?????????????????????????????????????????????????? | | ?????????????????????????????????????????????????? | | ?????????????????????????????????????????????????? | | ?????????????????????????????????????????????????? | | ?????????????????????????????????????????????????? | | ?????????????????????????????????????????????????? | | ?????????????????????????????????????????????????? | | ?????????????????????????????????????????????????? | | ?????????????????????????????????????????????????? | | ?????????????????????????????????????????????????? | | ?????????????????????????????????????????????????? | +----------------------------------------------------+ Best States ------------- Heat Dissipation 25 Energy Generation 15 Energy Capacity 170 Matter Stores 450 Matter Capacity 450 Sight Range 16 Terrain Scan Density 10 Evasion (%) 50 Recoil Reduction 1 Item Schematics ----------------- None Robot Schematics ------------------ None Fabricated ------------ Nothing Alien Tech Used ----------------- None Achievements -------------- None Challenges ------------ None RPGLIKE | -11 -10 -10 -10 --------- Run | Scr Mat Min Exi Levels Raised 1 | . . 1 . XP Earned 4995 | 3000 165 1480 350 XP Spent 1250 | . 250 1000 . Upgrades 3 | . 1 2 . Weapon Slot 1 | . . 1 . Inventory Capacity 2 | . 1 1 . Protomatter Created 76 | . 18 11 47 Integrity Restored 311 | . . 188 123 Core 259 | . . 136 123 Parts 52 | . . 52 . Protomatter Decayed 103 | . . 7 96 Game ------ Seed RecyclingLegReconfigurator Manual? 0 Play Time 00:18:22 Cumulative 619.6 hours Start 2019.12.18 @ 10:26:26 End 2019.12.18 @ 10:40:59 Sessions 1 Manual Loads 0 Difficulty Rogue Special Mode Winter2019/RPGLIKE Game No. 399 Rogue 399 Adventurer 0 Explorer 0 Win Type - Total 102 Types 68/6/8/10/5/1/4 Lore% 97 Gallery% 94 Achievement% 80 Wizard Run 0 Options --------- ASCII 0 Keyboard 0 Movement Numpad Keybinds 0 Fullscreen 2 Font 18/SmallcapsGlow Map View 76x50 Tactical HUD 1 Map Filters NONE Filters NONE Steam 1 RUN: 3b0b1fd0-ada2-4fd9-8648-b1ee2f17e549